[Event "*** Titled Tuesday Blitz"]
[Site "Chess.com"]
[Date "2019.09.03"]
[Round "4"]
[White "kuli4ik"]
[Black "Bigfish1995"]
[Result "0-1"]
[WhiteElo "2789"]
[BlackElo "3061"]
[TimeControl "180+2"]
[EndTime "15:53:59 PDT"]
[Termination "Bigfish1995 won by resignation"]

1. Nf3 {[%clk 0:03:01.9]} 1... Nf6 {[%clk 0:02:58]} 2. g3 {[%clk 0:03:02.9]}
2... d5 {[%clk 0:02:58.3]} 3. Bg2 {[%clk 0:03:03.1]} 3... c6 {[%clk 0:03:00.2]}
4. O-O {[%clk 0:03:03.9]} 4... Bg4 {[%clk 0:03:01]} 5. c4 {[%clk 0:03:04.5]}
5... e6 {[%clk 0:03:01.7]} 6. cxd5 {[%clk 0:03:05.1]} 6... cxd5 {[%clk
0:03:00.1]} 7. Ne5 {[%clk 0:03:02.4]} 7... Bf5 {[%clk 0:02:57.6]} 8. Nc3 {[%clk
0:02:59.6]} 8... Nbd7 {[%clk 0:02:58.6]} 9. d4 {[%clk 0:02:57.1]} 9... Be7
{[%clk 0:02:54.8]} 10. Qb3 {[%clk 0:02:55.6]} 10... Qb6 {[%clk 0:02:51.4]} 11.
Qa4 {[%clk 0:02:55.9]} 11... Qb4 {[%clk 0:02:46.3]} 12. Nxd7 {[%clk 0:02:49]}
12... Nxd7 {[%clk 0:02:45.5]} 13. Qxb4 {[%clk 0:02:50]} 13... Bxb4 {[%clk
0:02:46.5]} 14. Bd2 {[%clk 0:02:51.4]} 14... O-O {[%clk 0:02:36]} 15. Rfc1
{[%clk 0:02:49.1]} 15... Nb6 {[%clk 0:02:31.1]} 16. a3 {[%clk 0:02:44.7]} 16...
Be7 {[%clk 0:01:54]} 17. b3 {[%clk 0:02:42.2]} 17... Rfd8 {[%clk 0:01:41.3]} 18.
e3 {[%clk 0:02:39]} 18... a6 {[%clk 0:01:38.5]} 19. Kf1 {[%clk 0:02:30.3]} 19...
Bd3+ {[%clk 0:01:35.9]} 20. Ke1 {[%clk 0:02:31.1]} 20... Rac8 {[%clk 0:01:36.8]}
21. a4 {[%clk 0:02:16.9]} 21... g5 {[%clk 0:01:36.7]} 22. Bf1 {[%clk 0:02:12.6]}
22... Bxf1 {[%clk 0:01:34.8]} 23. Kxf1 {[%clk 0:02:14.5]} 23... f5 {[%clk
0:01:36]} 24. Ke2 {[%clk 0:02:15.3]} 24... Kf7 {[%clk 0:01:34.1]} 25. Kd3 {[%clk
0:02:15.9]} 25... Nd7 {[%clk 0:01:32]} 26. h3 {[%clk 0:02:12.4]} 26... Nf6
{[%clk 0:01:31.4]} 27. Ne2 {[%clk 0:02:08]} 27... g4 {[%clk 0:01:28.2]} 28. hxg4
{[%clk 0:02:07.8]} 28... fxg4 {[%clk 0:01:27]} 29. Rxc8 {[%clk 0:02:05.1]} 29...
Rxc8 {[%clk 0:01:27.5]} 30. Rh1 {[%clk 0:02:07]} 30... h5 {[%clk 0:01:26.2]} 31.
Nf4 {[%clk 0:02:06.9]} 31... Bd6 {[%clk 0:01:27.4]} 32. Ne2 {[%clk 0:01:40.4]}
32... Ne4 {[%clk 0:01:23.5]} 33. Be1 {[%clk 0:01:39.5]} 33... Kg6 {[%clk
0:01:23.7]} 34. Rf1 {[%clk 0:01:34.8]} 34... b5 {[%clk 0:00:52.4]} 35. axb5
{[%clk 0:01:30.3]} 35... axb5 {[%clk 0:00:53.7]} 36. f3 {[%clk 0:01:29.6]} 36...
gxf3 {[%clk 0:00:35.6]} 37. Rxf3 {[%clk 0:01:31.5]} 37... Ra8 {[%clk 0:00:34.8]}
38. Nc3 {[%clk 0:01:27.8]} 38... Bb4 {[%clk 0:00:32.4]} 39. Rf1 {[%clk
0:01:20.5]} 39... Ra1 {[%clk 0:00:23.4]} 40. Nxe4 {[%clk 0:01:18.9]} 40... dxe4+
{[%clk 0:00:24.7]} 41. Ke2 {[%clk 0:01:20.8]} 41... Ra2+ {[%clk 0:00:23.3]} 42.
Kd1 {[%clk 0:01:21.9]} 42... Bd6 {[%clk 0:00:20.4]} 43. Rg1 {[%clk 0:00:55.3]}
43... Kg5 {[%clk 0:00:19.8]} 44. Rf1 {[%clk 0:00:55.6]} 44... Kg6 {[%clk
0:00:13.7]} 45. Rg1 {[%clk 0:00:56.4]} 45... Ra1+ {[%clk 0:00:14.4]} 46. Ke2
{[%clk 0:00:56.7]} 46... Rb1 {[%clk 0:00:15.4]} 47. Bf2 {[%clk 0:00:34.9]} 47...
Rb2+ {[%clk 0:00:16.1]} 48. Kf1 {[%clk 0:00:33.2]} 48... Rxb3 {[%clk 0:00:17.5]}
49. Kg2 {[%clk 0:00:31.6]} 49... b4 {[%clk 0:00:17.9]} 50. Rc1 {[%clk
0:00:29.8]} 50... Rc3 {[%clk 0:00:19.1]} 51. Ra1 {[%clk 0:00:26.6]} 51... b3
{[%clk 0:00:20.2]} 52. Ra6 {[%clk 0:00:25.9]} 52... b2 {[%clk 0:00:21]} 53. Rb6
{[%clk 0:00:26.3]} 53... Rc2 {[%clk 0:00:22.4]} 54. d5 {[%clk 0:00:20.8]} 54...
Bc5 {[%clk 0:00:18.6]} 55. Rxe6+ {[%clk 0:00:20.4]} 55... Kf5 {[%clk 0:00:19.6]}
0-1

[Event "*** Titled Tuesday Blitz"]
[Site "Chess.com"]
[Date "2019.09.03"]
[Round "4"]
[White "NemtsevIgor"]
[Black "chorejason"]
[Result "0-1"]
[WhiteElo "2304"]
[BlackElo "2119"]
[TimeControl "180+2"]
[EndTime "15:54:00 PDT"]
[Termination "chorejason won by checkmate"]

1. d4 {[%clk 0:03:01.9]} 1... Nf6 {[%clk 0:03:00.1]} 2. Bf4 {[%clk 0:03:02.8]}
2... g6 {[%clk 0:03:00.9]} 3. e3 {[%clk 0:03:03.5]} 3... Bg7 {[%clk 0:03:02.8]}
4. Nf3 {[%clk 0:03:04.6]} 4... O-O {[%clk 0:03:04.7]} 5. Be2 {[%clk 0:03:05.8]}
5... c5 {[%clk 0:03:06.6]} 6. c3 {[%clk 0:03:06.2]} 6... d5 {[%clk 0:03:07.8]}
7. O-O {[%clk 0:03:07.1]} 7... Qb6 {[%clk 0:03:07.7]} 8. Qb3 {[%clk 0:03:06.7]}
8... Nc6 {[%clk 0:03:09.6]} 9. Nbd2 {[%clk 0:03:01.1]} 9... c4 {[%clk
0:03:10.9]} 10. Qc2 {[%clk 0:03:01.3]} 10... Qa5 {[%clk 0:03:12]} 11. h3 {[%clk
0:03:00.1]} 11... Bf5 {[%clk 0:03:12.8]} 12. Qc1 {[%clk 0:03:00.8]} 12... b5
{[%clk 0:03:14.4]} 13. a3 {[%clk 0:03:01.2]} 13... Rac8 {[%clk 0:03:14.7]} 14.
Bd1 {[%clk 0:03:00.7]} 14... Qb6 {[%clk 0:03:15.1]} 15. Re1 {[%clk 0:03:01.3]}
15... a5 {[%clk 0:03:16.3]} 16. Bc2 {[%clk 0:03:02.4]} 16... Bxc2 {[%clk
0:03:12.9]} 17. Qxc2 {[%clk 0:03:03.1]} 17... b4 {[%clk 0:03:14.6]} 18. axb4
{[%clk 0:03:04.4]} 18... axb4 {[%clk 0:03:15.7]} 19. e4 {[%clk 0:03:05.6]} 19...
b3 {[%clk 0:02:52.7]} 20. Qd1 {[%clk 0:03:00.2]} 20... e6 {[%clk 0:02:50.6]} 21.
Bd6 {[%clk 0:02:48.5]} 21... Rfd8 {[%clk 0:02:36.5]} 22. e5 {[%clk 0:02:49.3]}
22... Ne8 {[%clk 0:02:35.1]} 23. Bc5 {[%clk 0:02:46.5]} 23... Qb5 {[%clk
0:02:33.2]} 24. Nf1 {[%clk 0:02:38]} 24... Ra8 {[%clk 0:02:27.1]} 25. Ba3 {[%clk
0:02:36.7]} 25... Ra6 {[%clk 0:02:09.1]} 26. h4 {[%clk 0:02:34.4]} 26... Rda8
{[%clk 0:02:10.1]} 27. h5 {[%clk 0:02:35.3]} 27... Bf8 {[%clk 0:02:01.8]} 28.
Qd2 {[%clk 0:02:32.2]} 28... Bxa3 {[%clk 0:01:47.5]} 29. bxa3 {[%clk 0:02:32.9]}
29... Ne7 {[%clk 0:01:48.5]} 30. g4 {[%clk 0:02:28.8]} 30... Kg7 {[%clk
0:01:39.6]} 31. Qg5 {[%clk 0:02:22.1]} 31... Qd7 {[%clk 0:01:34.8]} 32. Ng3
{[%clk 0:02:19]} 32... h6 {[%clk 0:01:02.7]} 33. Qe3 {[%clk 0:02:19.1]} 33...
Rxa3 {[%clk 0:00:56.9]} 34. Rxa3 {[%clk 0:02:10.5]} 34... Rxa3 {[%clk
0:00:57.1]} 35. g5 {[%clk 0:02:08.2]} 35... b2 {[%clk 0:00:35.3]} 36. Rb1 {[%clk
0:02:03]} 36... Ra1 {[%clk 0:00:34.7]} 37. gxh6+ {[%clk 0:02:02]} 37... Kh8
{[%clk 0:00:34]} 38. Nd2 {[%clk 0:02:01.9]} 38... Qa4 {[%clk 0:00:23.5]} 39. Qf4
{[%clk 0:01:34]} 39... Rxb1+ {[%clk 0:00:16.5]} 40. Nxb1 {[%clk 0:01:35.2]}
40... Qd1+ {[%clk 0:00:17.3]} 41. Kg2 {[%clk 0:01:36.2]} 41... Nf5 {[%clk
0:00:17]} 42. Nxf5 {[%clk 0:01:29.5]} 42... gxf5 {[%clk 0:00:13.2]} 43. Qg5
{[%clk 0:01:23.6]} 43... Qxb1 {[%clk 0:00:10.5]} 44. Qd8 {[%clk 0:01:13.6]}
44... Qe4+ {[%clk 0:00:11.7]} 45. f3 {[%clk 0:01:14.3]} 45... Qe2+ {[%clk
0:00:11.8]} 46. Kg3 {[%clk 0:01:15.7]} 46... Qe1+ {[%clk 0:00:12.7]} 47. Kg2
{[%clk 0:01:16.6]} 47... Qd2+ {[%clk 0:00:14]} 48. Kg3 {[%clk 0:01:16.2]} 48...
Qg5+ {[%clk 0:00:15.2]} 49. Qxg5 {[%clk 0:01:16.8]} 49... b1=Q {[%clk
0:00:16.6]} 50. Qd8 {[%clk 0:01:15.7]} 50... Qg1+ {[%clk 0:00:17.8]} 51. Kh3
{[%clk 0:01:16.1]} 51... Qg8 {[%clk 0:00:18.4]} 52. Qe7 {[%clk 0:01:09]} 52...
Kh7 {[%clk 0:00:17.1]} 53. Qd8 {[%clk 0:01:03.8]} 53... Kxh6 {[%clk 0:00:18.4]}
54. Qe7 {[%clk 0:01:05]} 54... Kh7 {[%clk 0:00:19.7]} 55. Qd8 {[%clk 0:01:06.1]}
55... Ng7 {[%clk 0:00:20.5]} 56. Qf6 {[%clk 0:01:06.3]} 56... Nxh5 {[%clk
0:00:21.7]} 57. Qh4 {[%clk 0:01:06.5]} 57... Qg6 {[%clk 0:00:23]} 58. Kh2 {[%clk
0:01:05.4]} 58... Kg7 {[%clk 0:00:24.9]} 59. Qe7 {[%clk 0:01:05.7]} 59... f4
{[%clk 0:00:26.1]} 60. Kh1 {[%clk 0:01:06.3]} 60... Ng3+ {[%clk 0:00:26.4]} 61.
Kh2 {[%clk 0:01:07.3]} 61... Nf5 {[%clk 0:00:28.2]} 62. Qd8 {[%clk 0:01:06.7]}
62... Qg3+ {[%clk 0:00:28.5]} 63. Kh1 {[%clk 0:01:08]} 63... Qxf3+ {[%clk
0:00:30]} 64. Kh2 {[%clk 0:01:09.3]} 64... Qg3+ {[%clk 0:00:31.3]} 65. Kh1
{[%clk 0:01:10.6]} 65... f3 {[%clk 0:00:32.9]} 66. Qf6+ {[%clk 0:01:09.7]} 66...
Kg8 {[%clk 0:00:34.1]} 67. Qd8+ {[%clk 0:01:10.6]} 67... Kh7 {[%clk 0:00:35.7]}
68. Qh8+ {[%clk 0:01:05.6]} 68... Kg6 {[%clk 0:00:28.6]} 69. Qh7+ {[%clk
0:01:04.6]} 69... Kg5 {[%clk 0:00:28.5]} 70. Qh6+ {[%clk 0:01:05.7]} 70... Kg4
{[%clk 0:00:29.6]} 71. Qh5+ {[%clk 0:01:06.9]} 71... Kf4 {[%clk 0:00:31.3]} 72.
Qxf5+ {[%clk 0:01:06.1]} 72... exf5 {[%clk 0:00:27.6]} 73. e6 {[%clk 0:01:06.3]}
73... Qg2# {[%clk 0:00:28.6]} 0-1

[Event "*** Titled Tuesday Blitz"]
[Site "Chess.com"]
[Date "2019.09.03"]
[Round "4"]
[White "MikeSailer"]
[Black "MalyDominator"]
[Result "1-0"]
[WhiteElo "2120"]
[BlackElo "2309"]
[TimeControl "180+2"]
[EndTime "15:54:11 PDT"]
[Termination "MikeSailer won by resignation"]

1. b4 {[%clk 0:03:01.9]} 1... e5 {[%clk 0:02:57.7]} 2. Bb2 {[%clk 0:03:02.6]}
2... Bxb4 {[%clk 0:02:58.6]} 3. Bxe5 {[%clk 0:03:03.8]} 3... Nf6 {[%clk
0:03:00]} 4. Nf3 {[%clk 0:03:05.3]} 4... O-O {[%clk 0:03:01]} 5. e3 {[%clk
0:03:07.2]} 5... Re8 {[%clk 0:03:01.2]} 6. Bb2 {[%clk 0:03:07.8]} 6... d5 {[%clk
0:03:02.1]} 7. Be2 {[%clk 0:03:09.1]} 7... Ne4 {[%clk 0:02:57]} 8. O-O {[%clk
0:03:08.7]} 8... c6 {[%clk 0:02:49.8]} 9. c4 {[%clk 0:03:09.1]} 9... dxc4 {[%clk
0:02:45.5]} 10. Bxc4 {[%clk 0:03:10.1]} 10... Be6 {[%clk 0:02:43.8]} 11. Bxe6
{[%clk 0:03:09]} 11... Rxe6 {[%clk 0:02:45.7]} 12. Qb3 {[%clk 0:02:55.9]} 12...
Qb6 {[%clk 0:02:41.2]} 13. Bd4 {[%clk 0:02:44.3]} 13... Bc5 {[%clk 0:02:40.4]}
14. Bxc5 {[%clk 0:02:28.5]} 14... Nxc5 {[%clk 0:02:39.3]} 15. Qc2 {[%clk
0:02:26.1]} 15... Nbd7 {[%clk 0:02:33.6]} 16. Nc3 {[%clk 0:02:21.9]} 16... Nf6
{[%clk 0:02:25]} 17. Rab1 {[%clk 0:02:21.3]} 17... Qc7 {[%clk 0:02:17.6]} 18. d4
{[%clk 0:02:21.6]} 18... Ncd7 {[%clk 0:02:11.2]} 19. a4 {[%clk 0:02:01.8]} 19...
Rae8 {[%clk 0:02:07.3]} 20. h3 {[%clk 0:01:44.2]} 20... b6 {[%clk 0:01:41.2]}
21. Rfc1 {[%clk 0:01:41]} 21... Nf8 {[%clk 0:01:21.2]} 22. Ne5 {[%clk
0:01:35.7]} 22... Ng6 {[%clk 0:01:21.7]} 23. Nb5 {[%clk 0:01:35.6]} 23... Qb7
{[%clk 0:01:10.6]} 24. Nxc6 {[%clk 0:01:31.9]} 24... a6 {[%clk 0:01:10.3]} 25.
Na3 {[%clk 0:01:14]} 25... Rc8 {[%clk 0:01:10.8]} 26. d5 {[%clk 0:00:45.1]}
26... Nxd5 {[%clk 0:01:09.5]} 27. Na5 {[%clk 0:00:31.9]} 27... Rxc2 {[%clk
0:00:47]} 28. Nxb7 {[%clk 0:00:32.6]} 28... Rxc1+ {[%clk 0:00:25]} 29. Rxc1
{[%clk 0:00:34]} 29... h6 {[%clk 0:00:20.9]} 30. Rc8+ {[%clk 0:00:34.6]} 30...
Kh7 {[%clk 0:00:21.4]} 31. Nc4 {[%clk 0:00:36.1]} 31... Re4 {[%clk 0:00:18.5]}
32. Nbd6 {[%clk 0:00:34.3]} 32... Re7 {[%clk 0:00:13.6]} 33. e4 {[%clk
0:00:35.7]} 33... Nc3 {[%clk 0:00:14.3]} 34. Nxb6 {[%clk 0:00:36.1]} 34... Nxe4
{[%clk 0:00:13.3]} 35. Nf5 {[%clk 0:00:22.2]} 35... Re6 {[%clk 0:00:09.2]} 36.
Nd7 {[%clk 0:00:19.7]} 36... Nd6 {[%clk 0:00:04.2]} 37. Nxd6 {[%clk 0:00:18]}
37... Rxd6 {[%clk 0:00:05.4]} 38. Nc5 {[%clk 0:00:15.4]} 38... a5 {[%clk
0:00:04.5]} 39. Ra8 {[%clk 0:00:15.2]} 39... Rd1+ {[%clk 0:00:04.5]} 40. Kh2
{[%clk 0:00:16.5]} 40... Rd2 {[%clk 0:00:05.7]} 41. Kg3 {[%clk 0:00:16.2]} 41...
h5 {[%clk 0:00:07.1]} 42. h4 {[%clk 0:00:16.5]} 42... Ne5 {[%clk 0:00:06.8]} 43.
Rxa5 {[%clk 0:00:17.2]} 43... Rd5 {[%clk 0:00:07]} 44. Rb5 {[%clk 0:00:17]}
44... Ng4 {[%clk 0:00:06.1]} 45. Nb3 {[%clk 0:00:16.3]} 45... Rd3+ {[%clk
0:00:06.6]} 46. f3 {[%clk 0:00:15.7]} 46... Ne3 {[%clk 0:00:07.8]} 47. a5 {[%clk
0:00:15.5]} 47... f5 {[%clk 0:00:05.5]} 48. a6 {[%clk 0:00:14.7]} 48... Rd7
{[%clk 0:00:03.7]} 49. Rb7 {[%clk 0:00:15.4]} 49... Rd6 {[%clk 0:00:03.5]} 50.
Nc5 {[%clk 0:00:14.9]} 50... f4+ {[%clk 0:00:03.4]} 51. Kxf4 {[%clk 0:00:14.1]}
51... Nxg2+ {[%clk 0:00:04.6]} 52. Kg3 {[%clk 0:00:15.2]} 52... Rg6+ {[%clk
0:00:05.1]} 53. Kf2 {[%clk 0:00:16.1]} 53... Nxh4 {[%clk 0:00:06]} 54. a7 {[%clk
0:00:17.2]} 54... Ra6 {[%clk 0:00:06.8]} 55. Nxa6 {[%clk 0:00:18.4]} 1-0

[Event "*** Titled Tuesday Blitz"]
[Site "Chess.com"]
[Date "2019.09.03"]
[Round "4"]
[White "2nd_life"]
[Black "Sutormin_DA"]
[Result "0-1"]
[WhiteElo "2373"]
[BlackElo "2604"]
[TimeControl "180+2"]
[EndTime "15:54:19 PDT"]
[Termination "Sutormin_DA won by resignation"]

1. e4 {[%clk 0:03:01.9]} 1... c5 {[%clk 0:03:00]} 2. Nf3 {[%clk 0:03:02.6]} 2...
e6 {[%clk 0:03:01.2]} 3. b4 {[%clk 0:02:57.5]} 3... cxb4 {[%clk 0:03:00.4]} 4.
a3 {[%clk 0:02:58.2]} 4... d5 {[%clk 0:02:58.8]} 5. e5 {[%clk 0:02:57.2]} 5...
Nc6 {[%clk 0:02:59.1]} 6. d4 {[%clk 0:02:50.4]} 6... bxa3 {[%clk 0:02:59.4]} 7.
Bd3 {[%clk 0:02:44.2]} 7... Nge7 {[%clk 0:02:56.9]} 8. Bxa3 {[%clk 0:02:41.9]}
8... Nf5 {[%clk 0:02:56.6]} 9. Bxf8 {[%clk 0:02:42]} 9... Kxf8 {[%clk
0:02:56.4]} 10. c3 {[%clk 0:02:39.1]} 10... g6 {[%clk 0:02:48.2]} 11. Qc1 {[%clk
0:02:28]} 11... h5 {[%clk 0:02:48.4]} 12. h3 {[%clk 0:02:10.6]} 12... a6 {[%clk
0:02:42.7]} 13. Ke2 {[%clk 0:01:44.6]} 13... Kg7 {[%clk 0:02:40.8]} 14. g4
{[%clk 0:01:43.2]} 14... hxg4 {[%clk 0:02:27.2]} 15. hxg4 {[%clk 0:01:42.6]}
15... Nh4 {[%clk 0:02:27.8]} 16. Nbd2 {[%clk 0:01:12.4]} 16... Bd7 {[%clk
0:02:28.4]} 17. Nxh4 {[%clk 0:01:05.4]} 17... Rxh4 {[%clk 0:02:29.1]} 18. Nf3
{[%clk 0:01:05.8]} 18... Rxh1 {[%clk 0:02:26.1]} 19. Qxh1 {[%clk 0:01:07.7]}
19... Qb6 {[%clk 0:02:22.8]} 20. Rb1 {[%clk 0:01:06.6]} 20... Qc7 {[%clk
0:02:17.7]} 21. Qh4 {[%clk 0:01:04.3]} 21... Qd8 {[%clk 0:02:02.2]} 22. Ng5
{[%clk 0:00:43.6]} 22... Qh8 {[%clk 0:01:58.2]} 23. Qg3 {[%clk 0:00:44.1]} 23...
Qh6 {[%clk 0:01:52.4]} 24. Qf4 {[%clk 0:00:24.2]} 24... Nd8 {[%clk 0:01:38.8]}
25. Qf6+ {[%clk 0:00:18.4]} 25... Kg8 {[%clk 0:01:39]} 26. Rxb7 {[%clk
0:00:10.4]} 26... Nxb7 {[%clk 0:00:35.9]} 27. Qxf7+ {[%clk 0:00:11]} 27... Kh8
{[%clk 0:00:37.6]} 28. Qxd7 {[%clk 0:00:07.8]} 28... Qxg5 {[%clk 0:00:35.8]} 29.
Qxb7 {[%clk 0:00:08.9]} 29... Qxg4+ {[%clk 0:00:32.4]} 30. f3 {[%clk 0:00:09.8]}
30... Qg2+ {[%clk 0:00:33.5]} 31. Ke3 {[%clk 0:00:11.2]} 31... Rf8 {[%clk
0:00:34.9]} 32. Be2 {[%clk 0:00:12]} 32... g5 {[%clk 0:00:27.2]} 33. Qxa6 {[%clk
0:00:06.6]} 33... Qh3 {[%clk 0:00:22.2]} 34. Qd6 {[%clk 0:00:05.5]} 34... Qh6
{[%clk 0:00:21.9]} 35. Qe7 {[%clk 0:00:05.6]} 35... g4+ {[%clk 0:00:22.3]} 36.
Kf2 {[%clk 0:00:03.3]} 36... Qg7 {[%clk 0:00:19.2]} 37. Qxg7+ {[%clk 0:00:02.1]}
37... Kxg7 {[%clk 0:00:20.3]} 38. Kg3 {[%clk 0:00:04]} 38... gxf3 {[%clk
0:00:21.5]} 39. Bxf3 {[%clk 0:00:05.9]} 39... Rc8 {[%clk 0:00:22.7]} 40. Bg4
{[%clk 0:00:06]} 40... Rxc3+ {[%clk 0:00:24.2]} 41. Kf4 {[%clk 0:00:07]} 41...
Kf7 {[%clk 0:00:22.7]} 42. Be2 {[%clk 0:00:08]} 42... Kg6 {[%clk 0:00:22]} 43.
Bf1 {[%clk 0:00:08]} 43... Ra3 {[%clk 0:00:21.5]} 44. Be2 {[%clk 0:00:08.7]}
44... Ra4 {[%clk 0:00:22.7]} 45. Bd3+ {[%clk 0:00:09.8]} 45... Kh6 {[%clk
0:00:23.3]} 46. Ke3 {[%clk 0:00:10.3]} 46... Kg5 {[%clk 0:00:24.6]} 47. Bc2
{[%clk 0:00:10.5]} 47... Ra3+ {[%clk 0:00:25.8]} 48. Bd3 {[%clk 0:00:11.7]}
48... Kg4 {[%clk 0:00:27]} 49. Kd2 {[%clk 0:00:07.8]} 49... Kf4 {[%clk
0:00:28.2]} 50. Bg6 {[%clk 0:00:08.6]} 50... Ra4 {[%clk 0:00:28.6]} 51. Kd3
{[%clk 0:00:09.3]} 51... Ra3+ {[%clk 0:00:29.6]} 52. Kd2 {[%clk 0:00:10.4]}
52... Rb3 {[%clk 0:00:29.1]} 53. Ke2 {[%clk 0:00:07.5]} 53... Rg3 {[%clk
0:00:28.4]} 54. Bh7 {[%clk 0:00:06]} 54... Rg7 {[%clk 0:00:27.9]} 55. Bb1 {[%clk
0:00:04.1]} 55... Rg2+ {[%clk 0:00:28.7]} 56. Kd3 {[%clk 0:00:03.8]} 56... Rb2
{[%clk 0:00:29.2]} 57. Bc2 {[%clk 0:00:04.1]} 57... Rxc2 {[%clk 0:00:23.9]} 0-1

[Event "*** Titled Tuesday Blitz"]
[Site "Chess.com"]
[Date "2019.09.03"]
[Round "4"]
[White "KRASAVCHIK2002"]
[Black "Padenie_Zvezd"]
[Result "1-0"]
[WhiteElo "2387"]
[BlackElo "2802"]
[TimeControl "180+2"]
[EndTime "15:54:20 PDT"]
[Termination "KRASAVCHIK2002 won by resignation"]

1. e4 {[%clk 0:03:01.9]} 1... c5 {[%clk 0:03:00.6]} 2. Nf3 {[%clk 0:03:02.8]}
2... Nc6 {[%clk 0:03:01.2]} 3. Nc3 {[%clk 0:03:00.3]} 3... g6 {[%clk 0:03:01.9]}
4. d4 {[%clk 0:02:55.3]} 4... cxd4 {[%clk 0:03:03.8]} 5. Nxd4 {[%clk 0:02:56.7]}
5... Bg7 {[%clk 0:03:05.1]} 6. Be3 {[%clk 0:02:57.8]} 6... Nf6 {[%clk
0:03:06.2]} 7. Bc4 {[%clk 0:02:57.3]} 7... Qa5 {[%clk 0:03:07.2]} 8. O-O {[%clk
0:02:39.3]} 8... O-O {[%clk 0:03:07.7]} 9. Bb3 {[%clk 0:02:29.1]} 9... d6 {[%clk
0:03:08.6]} 10. f3 {[%clk 0:02:29]} 10... Bd7 {[%clk 0:03:08.8]} 11. Qd2 {[%clk
0:02:24.5]} 11... Rfc8 {[%clk 0:03:07.8]} 12. Nxc6 {[%clk 0:02:00]} 12... Bxc6
{[%clk 0:03:01.4]} 13. Rad1 {[%clk 0:01:54.9]} 13... Nd7 {[%clk 0:02:57.4]} 14.
Bd4 {[%clk 0:01:52.7]} 14... Bxd4+ {[%clk 0:02:55.2]} 15. Qxd4 {[%clk 0:01:54]}
15... Qc5 {[%clk 0:02:56.9]} 16. Qxc5 {[%clk 0:01:49.4]} 16... Nxc5 {[%clk
0:02:58.8]} 17. Bd5 {[%clk 0:01:44.7]} 17... Kf8 {[%clk 0:02:53.9]} 18. Rd2
{[%clk 0:01:36.2]} 18... Bxd5 {[%clk 0:02:49.7]} 19. exd5 {[%clk 0:01:32.5]}
19... Rab8 {[%clk 0:02:38.6]} 20. Re1 {[%clk 0:01:23.6]} 20... b5 {[%clk
0:02:38.4]} 21. Ne2 {[%clk 0:01:21.9]} 21... Na4 {[%clk 0:02:37.1]} 22. c3
{[%clk 0:01:08.7]} 22... b4 {[%clk 0:02:32]} 23. cxb4 {[%clk 0:01:07.5]} 23...
Rxb4 {[%clk 0:02:33.9]} 24. b3 {[%clk 0:01:05.9]} 24... Nb6 {[%clk 0:02:33.2]}
25. Red1 {[%clk 0:01:00.8]} 25... a5 {[%clk 0:02:32.8]} 26. Kf2 {[%clk
0:00:56.1]} 26... a4 {[%clk 0:02:30.1]} 27. bxa4 {[%clk 0:00:57.3]} 27... Rxa4
{[%clk 0:02:30.6]} 28. Rb1 {[%clk 0:00:54.5]} 28... Ra6 {[%clk 0:02:18.2]} 29.
Rb3 {[%clk 0:00:36.5]} 29... Rc5 {[%clk 0:02:12.7]} 30. Nc3 {[%clk 0:00:36.6]}
30... Kg7 {[%clk 0:01:58.5]} 31. Rxb6 {[%clk 0:00:29.7]} 31... Rxb6 {[%clk
0:01:56.2]} 32. Na4 {[%clk 0:00:31.2]} 32... Rbb5 {[%clk 0:01:42.9]} 33. Nxc5
{[%clk 0:00:31.9]} 33... Rxc5 {[%clk 0:01:44.8]} 34. a4 {[%clk 0:00:28.7]} 34...
Ra5 {[%clk 0:01:44.4]} 35. Rd4 {[%clk 0:00:29.3]} 35... Kf6 {[%clk 0:01:45.7]}
36. Ke3 {[%clk 0:00:28]} 36... Ke5 {[%clk 0:01:38.7]} 37. Re4+ {[%clk
0:00:25.7]} 37... Kf6 {[%clk 0:01:36.5]} 38. Rf4+ {[%clk 0:00:26.6]} 38... Kg7
{[%clk 0:01:35.6]} 39. Re4 {[%clk 0:00:24.2]} 39... Ra7 {[%clk 0:01:26.8]} 40.
Kd3 {[%clk 0:00:21.5]} 40... f5 {[%clk 0:01:27.4]} 41. Rd4 {[%clk 0:00:16]}
41... g5 {[%clk 0:01:28.8]} 42. Kc3 {[%clk 0:00:16.4]} 42... Kf6 {[%clk
0:01:23.1]} 43. g3 {[%clk 0:00:17.8]} 43... h5 {[%clk 0:01:10.3]} 44. f4 {[%clk
0:00:18.2]} 44... g4 {[%clk 0:01:10.2]} 45. Kb4 {[%clk 0:00:18.3]} 45... Rb7+
{[%clk 0:01:10.9]} 46. Ka3 {[%clk 0:00:12.2]} 46... Rb1 {[%clk 0:01:08.2]} 47.
a5 {[%clk 0:00:11.1]} 47... Ra1+ {[%clk 0:01:09.1]} 48. Kb4 {[%clk 0:00:12.5]}
48... Ra2 {[%clk 0:01:10.6]} 49. Kb5 {[%clk 0:00:13.5]} 49... Rxh2 {[%clk
0:01:04.7]} 50. a6 {[%clk 0:00:14.6]} 50... Rc2 {[%clk 0:00:33.9]} 51. a7 {[%clk
0:00:12.3]} 51... Rc8 {[%clk 0:00:33.1]} 52. Ra4 {[%clk 0:00:13.4]} 52... Ra8
{[%clk 0:00:31.7]} 53. Kb6 {[%clk 0:00:14.2]} 53... h4 {[%clk 0:00:18.8]} 54.
gxh4 {[%clk 0:00:15.3]} 54... Kg6 {[%clk 0:00:12.9]} 55. Kb7 {[%clk 0:00:15.3]}
55... Rxa7+ {[%clk 0:00:13.1]} 56. Rxa7 {[%clk 0:00:16.1]} 56... Kh5 {[%clk
0:00:15]} 57. Kc6 {[%clk 0:00:17.2]} 57... Kxh4 {[%clk 0:00:14.3]} 58. Rxe7
{[%clk 0:00:17.7]} 58... Kg3 {[%clk 0:00:12.9]} 59. Kxd6 {[%clk 0:00:18.5]}
59... Kxf4 {[%clk 0:00:14.8]} 60. Ke6 {[%clk 0:00:18.2]} 1-0